[Event "***Titled Tuesday 3|2 Blitz"]
[Site "Chess.com"]
[Date "2017.02.07"]
[Round "4"]
[White "johnathan113"]
[Black "Alliswell998"]
[Result "1-0"]
[WhiteElo "2353"]
[BlackElo "2128"]
[TimeControl "180+2"]
[EndTime "14:01:44 PST"]
[Termination "johnathan113 won by checkmate"]

1. e4 {[%clk 0:03:02]} 1... c5 {[%clk 0:03:00.3]} 2. Nf3 {[%clk 0:03:01.5]} 2...
d6 {[%clk 0:03:00.1]} 3. d4 {[%clk 0:02:56]} 3... cxd4 {[%clk 0:03:02]} 4. Nxd4
{[%clk 0:02:57.9]} 4... Nf6 {[%clk 0:03:03.5]} 5. Nc3 {[%clk 0:02:59.4]} 5... a6
{[%clk 0:03:04.9]} 6. Be2 {[%clk 0:02:59.3]} 6... e5 {[%clk 0:03:06.2]} 7. Nb3
{[%clk 0:03:00.4]} 7... Be7 {[%clk 0:03:06.8]} 8. Bg5 {[%clk 0:03:02]} 8... Be6
{[%clk 0:03:06.8]} 9. Bxf6 {[%clk 0:03:01.8]} 9... Bxf6 {[%clk 0:03:07.7]} 10.
Qd3 {[%clk 0:03:03.7]} 10... O-O {[%clk 0:03:03]} 11. O-O-O {[%clk 0:03:04.1]}
11... Be7 {[%clk 0:02:55.4]} 12. Nd5 {[%clk 0:03:03.2]} 12... Bxd5 {[%clk
0:02:55.7]} 13. Qxd5 {[%clk 0:03:04.5]} 13... Qc7 {[%clk 0:02:49.1]} 14. Kb1
{[%clk 0:03:01.7]} 14... Nd7 {[%clk 0:02:49.9]} 15. Nd2 {[%clk 0:02:48.7]} 15...
b5 {[%clk 0:02:45.6]} 16. Nf1 {[%clk 0:02:45.1]} 16... Nb6 {[%clk 0:02:44.5]}
17. Qd3 {[%clk 0:02:42.9]} 17... Rac8 {[%clk 0:02:38.5]} 18. Ne3 {[%clk
0:02:43.4]} 18... Rfd8 {[%clk 0:02:26.7]} 19. c3 {[%clk 0:02:44.6]} 19... Bf8
{[%clk 0:02:26.2]} 20. Bg4 {[%clk 0:02:40.5]} 20... Rb8 {[%clk 0:02:25.6]} 21.
Nd5 {[%clk 0:02:40.3]} 21... Nxd5 {[%clk 0:02:26.4]} 22. Qxd5 {[%clk 0:02:42.2]}
22... Qc5 {[%clk 0:02:20.2]} 23. Rd3 {[%clk 0:02:22.6]} 23... Qxd5 {[%clk
0:02:14.6]} 24. Rxd5 {[%clk 0:02:23.2]} 24... Be7 {[%clk 0:02:09]} 25. g3 {[%clk
0:02:17.1]} 25... g6 {[%clk 0:02:02.9]} 26. f4 {[%clk 0:02:14.9]} 26... exf4
{[%clk 0:01:57.8]} 27. gxf4 {[%clk 0:02:16.8]} 27... Kg7 {[%clk 0:01:57.9]} 28.
Rhd1 {[%clk 0:02:17.5]} 28... h5 {[%clk 0:01:56.3]} 29. Be2 {[%clk 0:02:14.5]}
29... Rbc8 {[%clk 0:01:53.6]} 30. a4 {[%clk 0:02:07.3]} 30... bxa4 {[%clk
0:01:52.1]} 31. Ra5 {[%clk 0:02:08.4]} 31... Rb8 {[%clk 0:01:42.9]} 32. Rxa4
{[%clk 0:02:06.2]} 32... Bf6 {[%clk 0:01:40.4]} 33. Kc2 {[%clk 0:02:06.7]} 33...
Re8 {[%clk 0:01:32.2]} 34. Rxd6 {[%clk 0:02:03.8]} 34... Bd8 {[%clk 0:01:17.6]}
35. Rdxa6 {[%clk 0:01:53.7]} 35... Bc7 {[%clk 0:01:17.2]} 36. e5 {[%clk
0:01:49.8]} 36... g5 {[%clk 0:01:17.5]} 37. Rc4 {[%clk 0:01:43.7]} 37... Re7
{[%clk 0:01:14.4]} 38. Ra7 {[%clk 0:01:38.1]} 38... Bd6 {[%clk 0:01:14.8]} 39.
Rxe7 {[%clk 0:01:35.7]} 39... Bxe7 {[%clk 0:01:15.5]} 40. f5 {[%clk 0:01:35.9]}
40... f6 {[%clk 0:01:14.4]} 41. Rc7 {[%clk 0:01:34.2]} 41... Kf8 {[%clk
0:01:15.1]} 42. exf6 {[%clk 0:01:34.6]} 42... Bxf6 {[%clk 0:01:17]} 43. Bxh5
{[%clk 0:01:34.3]} 43... Kg8 {[%clk 0:01:16.1]} 44. Bf7+ {[%clk 0:01:18.9]}
44... Kh8 {[%clk 0:01:16.7]} 45. h3 {[%clk 0:01:19.1]} 45... Rf8 {[%clk
0:01:11.9]} 46. Be6 {[%clk 0:01:19.1]} 46... Be5 {[%clk 0:01:12.5]} 47. Rc8
{[%clk 0:01:18.6]} 47... Kg7 {[%clk 0:01:12.4]} 48. b4 {[%clk 0:01:13.2]} 48...
Rf6 {[%clk 0:01:08.2]} 49. b5 {[%clk 0:01:10.8]} 49... Rh6 {[%clk 0:01:09.4]}
50. b6 {[%clk 0:01:10.1]} 50... Kf6 {[%clk 0:01:10.6]} 51. b7 {[%clk 0:01:04.2]}
51... Rxh3 {[%clk 0:01:09.5]} 52. b8=Q {[%clk 0:01:02.9]} 52... Bxb8 {[%clk
0:01:09.6]} 53. Rxb8 {[%clk 0:01:04.8]} 53... g4 {[%clk 0:01:10.4]} 54. Rf8+
{[%clk 0:01:04.3]} 54... Ke5 {[%clk 0:01:08.3]} 55. Rg8 {[%clk 0:01:00.2]} 55...
g3 {[%clk 0:01:09.1]} 56. Kb3 {[%clk 0:00:58]} 56... Kf6 {[%clk 0:01:01.9]} 57.
Bc8 {[%clk 0:00:54.9]} 57... Kf7 {[%clk 0:01:01.7]} 58. Rg4 {[%clk 0:00:51.7]}
58... Kf6 {[%clk 0:01:01]} 59. Bd7 {[%clk 0:00:47.1]} 59... Ke7 {[%clk
0:01:01.7]} 60. Bc6 {[%clk 0:00:46.8]} 60... Kf6 {[%clk 0:01:01.4]} 61. Bg2
{[%clk 0:00:47.2]} 61... Rh2 {[%clk 0:01:02.5]} 62. Rxg3 {[%clk 0:00:48.6]}
62... Kxf5 {[%clk 0:01:04.4]} 63. Bd5 {[%clk 0:00:46.4]} 63... Ke5 {[%clk
0:01:05.6]} 64. c4 {[%clk 0:00:45.8]} 64... Kd4 {[%clk 0:01:05.8]} 65. Kb4
{[%clk 0:00:43.6]} 65... Rb2+ {[%clk 0:01:06]} 66. Rb3 {[%clk 0:00:44.7]} 66...
Rc2 {[%clk 0:01:06.8]} 67. Kb5 {[%clk 0:00:45.2]} 67... Rc1 {[%clk 0:01:07.3]}
68. Kc6 {[%clk 0:00:44.5]} 68... Rg1 {[%clk 0:01:04.1]} 69. Kd6 {[%clk
0:00:39.7]} 69... Rg6+ {[%clk 0:01:02.4]} 70. Be6 {[%clk 0:00:40.8]} 70... Rg5
{[%clk 0:01:03.2]} 71. Rb1 {[%clk 0:00:37.9]} 71... Ra5 {[%clk 0:01:02.9]} 72.
Rd1+ {[%clk 0:00:36.6]} 72... Kc3 {[%clk 0:01:04.3]} 73. c5 {[%clk 0:00:37.4]}
73... Kb4 {[%clk 0:01:05]} 74. c6 {[%clk 0:00:37.5]} 74... Ra6 {[%clk
0:01:06.6]} 75. Bc8 {[%clk 0:00:33.7]} 75... Ra8 {[%clk 0:01:06.6]} 76. c7
{[%clk 0:00:31.1]} 76... Rxc8 {[%clk 0:01:04.8]} 77. Kd7 {[%clk 0:00:29.7]}
77... Rg8 {[%clk 0:01:04]} 78. Re1 {[%clk 0:00:25.1]} 78... Rg7+ {[%clk
0:01:05.9]} 79. Re7 {[%clk 0:00:25.9]} 79... Rg8 {[%clk 0:01:06.4]} 80. c8=Q
{[%clk 0:00:26.4]} 80... Rg5 {[%clk 0:01:06.1]} 81. Re4+ {[%clk 0:00:25.9]}
81... Ka5 {[%clk 0:01:05.8]} 82. Qc3+ {[%clk 0:00:24.2]} 82... Ka6 {[%clk
0:01:05.4]} 83. Ra4+ {[%clk 0:00:24.7]} 83... Kb7 {[%clk 0:01:06.1]} 84. Qc7#
{[%clk 0:00:24.5]} 1-0

[Event "***Titled Tuesday 3|2 Blitz"]
[Site "Chess.com"]
[Date "2017.02.07"]
[Round "4"]
[White "jncool68"]
[Black "hansen"]
[Result "1/2-1/2"]
[WhiteElo "2527"]
[BlackElo "2631"]
[TimeControl "180+2"]
[EndTime "14:02:02 PST"]
[Termination "Game drawn by agreement"]

1. e4 {[%clk 0:03:01.9]} 1... c5 {[%clk 0:02:57.4]} 2. Nf3 {[%clk 0:03:01.8]}
2... Nc6 {[%clk 0:02:57.7]} 3. Nc3 {[%clk 0:03:00.9]} 3... e6 {[%clk 0:02:56.3]}
4. d4 {[%clk 0:03:00.5]} 4... cxd4 {[%clk 0:02:55.7]} 5. Nxd4 {[%clk 0:03:02.4]}
5... Qc7 {[%clk 0:02:57]} 6. Be3 {[%clk 0:03:02.6]} 6... a6 {[%clk 0:02:57.4]}
7. a3 {[%clk 0:03:03.5]} 7... Nf6 {[%clk 0:02:57.6]} 8. f4 {[%clk 0:03:04]} 8...
Nxd4 {[%clk 0:02:27.5]} 9. Qxd4 {[%clk 0:03:04]} 9... d6 {[%clk 0:02:13.5]} 10.
O-O-O {[%clk 0:02:52.3]} 10... Be7 {[%clk 0:02:13.2]} 11. Be2 {[%clk 0:02:38.9]}
11... O-O {[%clk 0:02:02.6]} 12. g4 {[%clk 0:02:39]} 12... b5 {[%clk 0:02:02]}
13. g5 {[%clk 0:02:38.9]} 13... Nd7 {[%clk 0:02:02.7]} 14. h4 {[%clk 0:02:38.2]}
14... Bb7 {[%clk 0:01:59.8]} 15. h5 {[%clk 0:02:39.2]} 15... Rfe8 {[%clk
0:01:51.4]} 16. h6 {[%clk 0:02:40]} 16... Bf8 {[%clk 0:01:37.9]} 17. hxg7 {[%clk
0:02:09.9]} 17... Bxg7 {[%clk 0:01:37.6]} 18. Qd3 {[%clk 0:02:11.1]} 18... Nc5
{[%clk 0:01:32.1]} 19. Bxc5 {[%clk 0:02:11.1]} 19... Qxc5 {[%clk 0:01:34]} 20.
Qh3 {[%clk 0:02:09.1]} 20... Kf8 {[%clk 0:01:22.3]} 21. Qxh7 {[%clk 0:02:05.3]}
21... Rac8 {[%clk 0:01:15.9]} 22. Bd3 {[%clk 0:02:02.5]} 22... b4 {[%clk
0:01:06]} 23. axb4 {[%clk 0:01:53.8]} 23... Qxb4 {[%clk 0:01:07.1]} 24. f5
{[%clk 0:01:54.1]} 24... exf5 {[%clk 0:01:00]} 25. exf5 {[%clk 0:01:54.8]} 25...
Bxc3 {[%clk 0:00:35.3]} 26. bxc3 {[%clk 0:01:54.7]} 26... Qa3+ {[%clk
0:00:36.1]} 27. Kb1 {[%clk 0:01:48.1]} 27... Bd5 {[%clk 0:00:34.5]} 28. Qh8+
{[%clk 0:01:46.1]} 28... Ke7 {[%clk 0:00:34.4]} 29. Qf6+ {[%clk 0:01:47.2]}
29... Kd7 {[%clk 0:00:35]} 30. Bb5+ {[%clk 0:01:48.1]} 30... axb5 {[%clk
0:00:28.8]} 31. Rxd5 {[%clk 0:01:45.3]} 31... Ra8 {[%clk 0:00:19.9]} 32. c4
{[%clk 0:01:32.3]} 32... Qa2+ {[%clk 0:00:18.3]} 33. Kc1 {[%clk 0:01:32.4]}
33... Qa1+ {[%clk 0:00:19.2]} 34. Kd2 {[%clk 0:01:29.9]} 34... Qxf6 {[%clk
0:00:19.3]} 35. gxf6 {[%clk 0:01:31]} 35... bxc4 {[%clk 0:00:20.6]} 36. Rh7
{[%clk 0:01:12.9]} 36... Kc6 {[%clk 0:00:21.5]} 37. Rd4 {[%clk 0:01:13.8]} 37...
Kc5 {[%clk 0:00:21.7]} 38. Rg4 {[%clk 0:01:11.7]} 38... Ra7 {[%clk 0:00:21.6]}
39. Rgg7 {[%clk 0:01:12.2]} 39... Rf8 {[%clk 0:00:20.5]} 40. Rh3 {[%clk
0:01:00.6]} 40... d5 {[%clk 0:00:21.5]} 41. Re3 {[%clk 0:01:01.7]} 41... Ra6
{[%clk 0:00:22.1]} 42. Rg1 {[%clk 0:00:50.7]} 42... Rxf6 {[%clk 0:00:22.7]} 43.
Ra1 {[%clk 0:00:51.5]} 43... Rb8 {[%clk 0:00:17.9]} 44. Re5 {[%clk 0:00:47.3]}
44... Kd4 {[%clk 0:00:16.7]} 45. Re7 {[%clk 0:00:46.2]} 45... Rb2 {[%clk
0:00:14.4]} 46. Rf1 {[%clk 0:00:41.9]} 46... c3+ {[%clk 0:00:10]} 47. Kc1 {[%clk
0:00:41]} 47... Ra6 {[%clk 0:00:05.2]} 48. Rf4+ {[%clk 0:00:41.9]} 48... Kc5
{[%clk 0:00:06.4]} 49. Rc7+ {[%clk 0:00:43]} 49... Kd6 {[%clk 0:00:06.4]} 50.
Rxc3 {[%clk 0:00:43.8]} 50... Rba2 {[%clk 0:00:07.6]} 51. f6 {[%clk 0:00:36.9]}
51... R2a4 {[%clk 0:00:06.9]} 52. Rf5 {[%clk 0:00:35.5]} 52... Ke6 {[%clk
0:00:07.8]} 53. Rf2 {[%clk 0:00:35.3]} 53... Re4 {[%clk 0:00:07.8]} 54. Rc7
{[%clk 0:00:35.2]} 54... Ra1+ {[%clk 0:00:05.2]} 55. Kb2 {[%clk 0:00:35.9]}
55... Ra8 {[%clk 0:00:03.1]} 56. Re7+ {[%clk 0:00:36.9]} 56... Kd6 {[%clk
0:00:04.2]} 57. Rxf7 {[%clk 0:00:37.8]} 57... Rb8+ {[%clk 0:00:05]} 58. Kc1
{[%clk 0:00:39]} 58... Re6 {[%clk 0:00:05.4]} 59. Ra7 {[%clk 0:00:39.2]} 59...
Rf8 {[%clk 0:00:06.2]} 60. f7 {[%clk 0:00:40.7]} 60... Re7 {[%clk 0:00:07.6]}
61. Ra6+ {[%clk 0:00:35.4]} 61... Kc5 {[%clk 0:00:08.6]} 62. Raf6 {[%clk
0:00:36.2]} 62... Re4 {[%clk 0:00:09.4]} 63. Kd2 {[%clk 0:00:37.4]} 63... Rh4
{[%clk 0:00:09.9]} 64. c3 {[%clk 0:00:37.7]} 64... Rh3 {[%clk 0:00:10.8]} 65.
Rg6 {[%clk 0:00:38.5]} 65... Rh7 {[%clk 0:00:11.2]} 66. Rgf6 {[%clk 0:00:38.6]}
66... Rh3 {[%clk 0:00:12.6]} 67. R6f5 {[%clk 0:00:38.3]} 67... Rg3 {[%clk
0:00:12.6]} 68. R2f3 {[%clk 0:00:39.5]} 68... Rg2+ {[%clk 0:00:05.7]} 69. Kd3
{[%clk 0:00:40.2]} 69... Rg4 {[%clk 0:00:06.8]} 70. Re3 {[%clk 0:00:41.1]} 70...
Rg7 {[%clk 0:00:07.3]} 71. Re7 {[%clk 0:00:41.8]} 71... Kd6 {[%clk 0:00:08.7]}
72. Ree5 {[%clk 0:00:39.4]} 72... Rfxf7 {[%clk 0:00:09.1]} 73. Rxd5+ {[%clk
0:00:40.6]} 73... Kc6 {[%clk 0:00:10.6]} 74. Rxf7 {[%clk 0:00:41.6]} 74... Rxf7
{[%clk 0:00:11.7]} 75. Rh5 {[%clk 0:00:43.2]} 75... Rf4 {[%clk 0:00:12.1]} 76.
c4 {[%clk 0:00:43.1]} 76... Rg4 {[%clk 0:00:12.4]} 77. Kc3 {[%clk 0:00:44.5]}
77... Rg1 {[%clk 0:00:13.4]} 78. Kb4 {[%clk 0:00:45.8]} 78... Rb1+ {[%clk
0:00:13.9]} 79. Kc3 {[%clk 0:00:47.2]} 79... Rc1+ {[%clk 0:00:15.3]} 80. Kb3
{[%clk 0:00:48.7]} 80... Rb1+ {[%clk 0:00:16.3]} 81. Kc2 {[%clk 0:00:50]} 81...
Rg1 {[%clk 0:00:17.8]} 82. Kc3 {[%clk 0:00:48.7]} 82... Rc1+ {[%clk 0:00:18.4]}
83. Kd3 {[%clk 0:00:49.9]} 83... Rd1+ {[%clk 0:00:19.8]} 1/2-1/2

[Event "***Titled Tuesday 3|2 Blitz"]
[Site "Chess.com"]
[Date "2017.02.07"]
[Round "5"]
[White "kpio91"]
[Black "Feegus"]
[Result "1-0"]
[WhiteElo "2525"]
[BlackElo "2364"]
[TimeControl "180+2"]
[EndTime "14:08:47 PST"]
[Termination "kpio91 won by resignation"]

1. e4 {[%clk 0:03:02]} 1... e6 {[%clk 0:03:01]} 2. d4 {[%clk 0:02:59.3]} 2... d5
{[%clk 0:02:59.6]} 3. Nd2 {[%clk 0:03:00.6]} 3... Nc6 {[%clk 0:02:59.8]} 4. Ngf3
{[%clk 0:03:00.7]} 4... Nf6 {[%clk 0:03:00.2]} 5. e5 {[%clk 0:03:01.7]} 5... Nd7
{[%clk 0:03:01.8]} 6. Bd3 {[%clk 0:03:03.3]} 6... f6 {[%clk 0:03:00.2]} 7. exf6
{[%clk 0:03:01.6]} 7... Qxf6 {[%clk 0:03:01.2]} 8. Nf1 {[%clk 0:03:00.2]} 8...
Bd6 {[%clk 0:03:01.3]} 9. Ne3 {[%clk 0:02:59.8]} 9... O-O {[%clk 0:02:08.6]} 10.
O-O {[%clk 0:02:58.4]} 10... Re8 {[%clk 0:01:35.4]} 11. c4 {[%clk 0:02:53.1]}
11... dxc4 {[%clk 0:01:12.2]} 12. Bxc4 {[%clk 0:02:46.8]} 12... Nb6 {[%clk
0:01:13.1]} 13. Bb3 {[%clk 0:02:47.3]} 13... Ne7 {[%clk 0:01:14]} 14. Re1 {[%clk
0:02:37.2]} 14... Nbd5 {[%clk 0:01:14.5]} 15. Ng4 {[%clk 0:02:37.2]} 15... Qf5
{[%clk 0:01:00.3]} 16. h3 {[%clk 0:02:34.6]} 16... h6 {[%clk 0:00:39.6]} 17.
Bxh6 {[%clk 0:02:29.6]} 17... c6 {[%clk 0:00:30.7]} 18. Bd2 {[%clk 0:02:20.3]}
18... Bd7 {[%clk 0:00:25.9]} 19. Bc2 {[%clk 0:02:14.4]} 19... Qh5 {[%clk
0:00:26.9]} 20. Nfe5 {[%clk 0:02:15.5]} 20... Nf5 {[%clk 0:00:21.3]} 21. Nxd7
{[%clk 0:02:10.7]} 1-0

[Event "***Titled Tuesday 3|2 Blitz"]
[Site "Chess.com"]
[Date "2017.02.07"]
[Round "5"]
[White "wonderfultime"]
[Black "Sven_Tica"]
[Result "1-0"]
[WhiteElo "2645"]
[BlackElo "2421"]
[TimeControl "180+2"]
[EndTime "14:08:52 PST"]
[Termination "wonderfultime won by resignation"]

1. d4 {[%clk 0:03:01.9]} 1... d5 {[%clk 0:02:57.1]} 2. c4 {[%clk 0:02:56.1]}
2... e6 {[%clk 0:02:58.1]} 3. Nc3 {[%clk 0:02:57]} 3... Nf6 {[%clk 0:02:56.9]}
4. Nf3 {[%clk 0:02:58.2]} 4... Be7 {[%clk 0:02:57.7]} 5. Bg5 {[%clk 0:02:56.2]}
5... Nbd7 {[%clk 0:02:58.8]} 6. e3 {[%clk 0:02:56.9]} 6... h6 {[%clk 0:02:59.8]}
7. Bh4 {[%clk 0:02:57.7]} 7... O-O {[%clk 0:03:00.9]} 8. Qc2 {[%clk 0:02:54.8]}
8... c5 {[%clk 0:02:59.5]} 9. cxd5 {[%clk 0:02:52.8]} 9... Nxd5 {[%clk 0:03:00]}
10. Bxe7 {[%clk 0:02:52.7]} 10... Qxe7 {[%clk 0:03:01.1]} 11. Be2 {[%clk
0:02:38.1]} 11... Nxc3 {[%clk 0:02:53.5]} 12. Qxc3 {[%clk 0:02:38]} 12... b6
{[%clk 0:02:53.7]} 13. O-O {[%clk 0:02:33.3]} 13... Bb7 {[%clk 0:02:54.7]} 14.
Rac1 {[%clk 0:02:31.7]} 14... Rac8 {[%clk 0:02:54.7]} 15. Qa3 {[%clk 0:02:32.7]}
15... a6 {[%clk 0:02:38.6]} 16. Rfd1 {[%clk 0:02:31.3]} 16... Rfe8 {[%clk
0:02:31.1]} 17. Ne1 {[%clk 0:02:17.3]} 17... b5 {[%clk 0:02:22.1]} 18. Bf3
{[%clk 0:02:15.4]} 18... Nb6 {[%clk 0:01:48.1]} 19. Bxb7 {[%clk 0:01:44.1]}
19... Qxb7 {[%clk 0:01:45.7]} 20. dxc5 {[%clk 0:01:45.1]} 20... Nc4 {[%clk
0:01:45.2]} 21. Qc3 {[%clk 0:01:45.4]} 21... Red8 {[%clk 0:01:29.9]} 22. b3
{[%clk 0:01:37.2]} 22... Na3 {[%clk 0:01:26.7]} 23. Rxd8+ {[%clk 0:01:36.5]}
23... Rxd8 {[%clk 0:01:28.6]} 24. Qa5 {[%clk 0:01:38]} 1-0

[Event "***Titled Tuesday 3|2 Blitz"]
[Site "Chess.com"]
[Date "2017.02.07"]
[Round "5"]
[White "A-Fier"]
[Black "Genghis_K"]
[Result "0-1"]
[WhiteElo "2498"]
[BlackElo "2688"]
[TimeControl "180+2"]
[EndTime "14:09:09 PST"]
[Termination "Genghis_K won by checkmate"]

1. d4 {[%clk 0:03:02]} 1... Nf6 {[%clk 0:02:53]} 2. c4 {[%clk 0:03:02.2]} 2...
e6 {[%clk 0:02:54.6]} 3. Nc3 {[%clk 0:03:02.9]} 3... Bb4 {[%clk 0:02:56.1]} 4.
e3 {[%clk 0:03:04]} 4... O-O {[%clk 0:02:56.9]} 5. Ne2 {[%clk 0:03:05.2]} 5...
c6 {[%clk 0:02:58.3]} 6. a3 {[%clk 0:03:05.3]} 6... Ba5 {[%clk 0:02:59.6]} 7.
Qc2 {[%clk 0:03:06.7]} 7... d5 {[%clk 0:03:00.2]} 8. Ng3 {[%clk 0:03:08]} 8...
Nbd7 {[%clk 0:03:00]} 9. Be2 {[%clk 0:03:08.8]} 9... Re8 {[%clk 0:02:46.5]} 10.
O-O {[%clk 0:03:08.3]} 10... Bc7 {[%clk 0:02:47.3]} 11. Rd1 {[%clk 0:03:03.4]}
11... dxc4 {[%clk 0:02:47.2]} 12. Bxc4 {[%clk 0:03:04.4]} 12... b5 {[%clk
0:02:48.8]} 13. Ba2 {[%clk 0:03:05]} 13... Bb7 {[%clk 0:02:50]} 14. e4 {[%clk
0:03:03.3]} 14... Qe7 {[%clk 0:02:36.2]} 15. e5 {[%clk 0:03:01.8]} 15... Nd5
{[%clk 0:02:32.8]} 16. Nce4 {[%clk 0:03:02.9]} 16... h6 {[%clk 0:02:29.6]} 17.
Bb1 {[%clk 0:03:00.6]} 17... Nf8 {[%clk 0:02:29.3]} 18. Nc5 {[%clk 0:02:59.9]}
18... Bb6 {[%clk 0:02:27.5]} 19. Nge4 {[%clk 0:02:58.7]} 19... Rad8 {[%clk
0:02:28.2]} 20. b4 {[%clk 0:02:58.1]} 20... Bc8 {[%clk 0:02:24.7]} 21. Nd6
{[%clk 0:02:57.9]} 21... Rxd6 {[%clk 0:02:25.7]} 22. exd6 {[%clk 0:02:59.8]}
22... Qxd6 {[%clk 0:02:27.6]} 23. Be3 {[%clk 0:02:57.9]} 23... Bc7 {[%clk
0:02:27.1]} 24. g3 {[%clk 0:02:56.7]} 24... Nxe3 {[%clk 0:02:23.4]} 25. fxe3
{[%clk 0:02:57.1]} 25... e5 {[%clk 0:02:25]} 26. Ne4 {[%clk 0:02:54.7]} 26...
Qg6 {[%clk 0:02:23.2]} 27. d5 {[%clk 0:02:51.4]} 27... cxd5 {[%clk 0:02:21.4]}
28. Qxc7 {[%clk 0:02:42.3]} 28... dxe4 {[%clk 0:02:22]} 29. Rf1 {[%clk
0:02:34.7]} 29... Bh3 {[%clk 0:02:21]} 30. Rf2 {[%clk 0:02:32.2]} 30... Rc8
{[%clk 0:02:13.7]} 31. Qxf7+ {[%clk 0:02:05.6]} 31... Qxf7 {[%clk 0:02:11.6]}
32. Ba2 {[%clk 0:02:07.2]} 32... Be6 {[%clk 0:02:01.1]} 33. Rxf7 {[%clk
0:02:07.6]} 33... Bxf7 {[%clk 0:02:01.3]} 34. Bxf7+ {[%clk 0:02:08.3]} 34...
Kxf7 {[%clk 0:02:02.8]} 35. a4 {[%clk 0:02:10.2]} 35... bxa4 {[%clk 0:02:01.6]}
36. Rxa4 {[%clk 0:02:10.3]} 36... Rc1+ {[%clk 0:02:03.1]} 37. Kg2 {[%clk
0:02:11.1]} 37... Rc2+ {[%clk 0:02:04.6]} 38. Kh3 {[%clk 0:02:12.6]} 38... Ne6
{[%clk 0:02:06.1]} 39. b5 {[%clk 0:02:11.9]} 39... Kf6 {[%clk 0:02:03]} 40. Rxa7
{[%clk 0:02:09.5]} 40... h5 {[%clk 0:02:03.8]} 41. Ra6 {[%clk 0:02:09.8]} 41...
Kf5 {[%clk 0:02:04.8]} 42. g4+ {[%clk 0:02:08]} 42... hxg4+ {[%clk 0:02:05.9]}
43. Kg3 {[%clk 0:02:09.4]} 43... Rc3 {[%clk 0:02:06.2]} 44. Kf2 {[%clk
0:02:08.7]} 44... Rc2+ {[%clk 0:01:57.7]} 45. Kg3 {[%clk 0:02:09.7]} 45... Nf4
{[%clk 0:01:59.1]} 46. h3 {[%clk 0:02:02.3]} 46... Rg2+ {[%clk 0:01:58.8]} 47.
Kh4 {[%clk 0:02:03.2]} 47... g5# {[%clk 0:02:00.1]} 0-1

[Event "***Titled Tuesday 3|2 Blitz"]
[Site "Chess.com"]
[Date "2017.02.07"]
[Round "5"]
[White "FairChess_on_YouTube"]
[Black "underdogchss"]
[Result "0-1"]
[WhiteElo "2726"]
[BlackElo "2458"]
[TimeControl "180+2"]
[EndTime "14:09:15 PST"]
[Termination "underdogchss won on time"]

1. d4 {[%clk 0:03:02]} 1... Nf6 {[%clk 0:03:00.5]} 2. Bg5 {[%clk 0:03:02.1]}
2... d5 {[%clk 0:03:00.9]} 3. Nd2 {[%clk 0:03:01.9]} 3... Nbd7 {[%clk
0:03:00.2]} 4. e3 {[%clk 0:02:56.6]} 4... h6 {[%clk 0:02:59.4]} 5. Bh4 {[%clk
0:02:56.6]} 5... c5 {[%clk 0:02:55.8]} 6. c3 {[%clk 0:02:54]} 6... e6 {[%clk
0:02:53.2]} 7. f4 {[%clk 0:02:50]} 7... Be7 {[%clk 0:02:53]} 8. Bd3 {[%clk
0:02:47.9]} 8... b6 {[%clk 0:02:40.1]} 9. Ngf3 {[%clk 0:02:48.5]} 9... Bb7
{[%clk 0:02:41.5]} 10. Ne5 {[%clk 0:02:42.3]} 10... Nxe5 {[%clk 0:02:30.6]} 11.
fxe5 {[%clk 0:02:42.2]} 11... Nd7 {[%clk 0:02:27.5]} 12. Bxe7 {[%clk 0:02:39.9]}
12... Qxe7 {[%clk 0:02:28.7]} 13. O-O {[%clk 0:02:38.6]} 13... O-O {[%clk
0:02:24.1]} 14. Qh5 {[%clk 0:02:25]} 14... Qg5 {[%clk 0:02:10.4]} 15. Qh3 {[%clk
0:02:15]} 15... f5 {[%clk 0:02:05.9]} 16. exf6 {[%clk 0:02:03.2]} 16... Rxf6
{[%clk 0:02:06.7]} 17. Rxf6 {[%clk 0:02:02.1]} 17... Qxf6 {[%clk 0:02:07.3]} 18.
Bb5 {[%clk 0:01:50.4]} 18... Qe7 {[%clk 0:01:48.4]} 0-1

[Event "***Titled Tuesday 3|2 Blitz"]
[Site "Chess.com"]
[Date "2017.02.07"]
[Round "5"]
[White "MateusViageiro"]
[Black "Vrolijk"]
[Result "1-0"]
[WhiteElo "2425"]
[BlackElo "2294"]
[TimeControl "180+2"]
[EndTime "14:09:39 PST"]
[Termination "MateusViageiro won by resignation"]

1. e4 {[%clk 0:03:01.9]} 1... e6 {[%clk 0:02:56.2]} 2. Qe2 {[%clk 0:03:01.3]}
2... c5 {[%clk 0:02:53.6]} 3. f4 {[%clk 0:03:01.6]} 3... Nc6 {[%clk 0:02:54.4]}
4. Nf3 {[%clk 0:03:02.7]} 4... Nf6 {[%clk 0:02:53.1]} 5. g3 {[%clk 0:03:03.6]}
5... g6 {[%clk 0:02:42.8]} 6. Bg2 {[%clk 0:03:04.3]} 6... Bg7 {[%clk 0:02:44.1]}
7. O-O {[%clk 0:03:04.9]} 7... O-O {[%clk 0:02:45.7]} 8. d3 {[%clk 0:03:05.6]}
8... d5 {[%clk 0:02:45.5]} 9. e5 {[%clk 0:03:06.1]} 9... Nd7 {[%clk 0:02:46.7]}
10. Be3 {[%clk 0:03:04.5]} 10... b6 {[%clk 0:02:47.1]} 11. Kh1 {[%clk
0:03:04.4]} 11... Bb7 {[%clk 0:02:48.4]} 12. Qf2 {[%clk 0:03:02.8]} 12... f6
{[%clk 0:02:48.8]} 13. exf6 {[%clk 0:02:59.3]} 13... Nxf6 {[%clk 0:02:50.7]} 14.
h3 {[%clk 0:02:55.8]} 14... e5 {[%clk 0:02:39.3]} 15. fxe5 {[%clk 0:02:53.4]}
15... Nxe5 {[%clk 0:02:33.5]} 16. Nxe5 {[%clk 0:02:49.3]} 16... Ng4 {[%clk
0:02:33.9]} 17. Qe2 {[%clk 0:02:23.5]} 17... Rxf1+ {[%clk 0:02:16.3]} 18. Qxf1
{[%clk 0:02:02.6]} 18... Nxe3 {[%clk 0:01:42.6]} 19. Qf7+ {[%clk 0:02:03]} 19...
Kh8 {[%clk 0:01:44]} 20. Qe6 {[%clk 0:01:51.7]} 20... Qe8 {[%clk 0:01:06.1]} 21.
Nf7+ {[%clk 0:01:49.4]} 21... Kg8 {[%clk 0:01:07.1]} 22. Nh6+ {[%clk 0:01:49.2]}
22... Kh8 {[%clk 0:01:05.2]} 23. Nf7+ {[%clk 0:01:50.1]} 23... Kg8 {[%clk
0:01:05.6]} 24. Nh6+ {[%clk 0:01:50.8]} 24... Kf8 {[%clk 0:00:39.8]} 25. Qg8+
{[%clk 0:01:50.3]} 25... Ke7 {[%clk 0:00:37.3]} 26. Qxg7+ {[%clk 0:01:50.9]}
26... Kd6 {[%clk 0:00:38.9]} 27. Qxb7 {[%clk 0:01:44.6]} 27... Nxg2 {[%clk
0:00:38.3]} 28. Nc3 {[%clk 0:01:37]} 1-0